bitfinex/quotes_SOLUSD_20251120
["timestamp","ask_amount","ask_price","bid_price","bid_amount"]
[1763665086397,50.0,132.69,132.67,7.89979386]
[1763665086597,50.0,132.69,132.66,9.83572474]
[1763665086766,50.69,132.69,132.66,9.83572474]
[1763665087375,50.69,132.69,132.67,7.89979386]
[1763665088097,50.0,132.69,132.67,7.89979386]
[1763665088396,50.0,132.69,132.68,7.89979386]
[1763665088971,50.0,132.69,132.67,7.89979386]
[1763665089482,50.0,132.69,132.67,69.09979386]
[1763665090578,50.0,132.69,132.68,7.89979386]
[1763665090991,18.12096,132.7,132.68,7.89979386]
[1763665091196,0.69,132.72,132.69,7.89979386]
[1763665091373,0.69,132.72,132.7,7.89979386]
[1763665092274,51.82,132.73,132.71,7.89979386]
[1763665092490,51.82,132.73,132.71,69.09979386]
[1763665092793,50.0,132.73,132.72,7.89979386]
[1763665092977,51.82,132.76,132.72,69.39979386]
[1763665093198,50.0,132.76,132.74,7.89979386]
[1763665093374,50.69,132.76,132.74,7.89979386]
[1763665093580,50.69,132.76,132.72,61.2]
[1763665093782,50.69,132.76,132.73,7.89979386]
[1763665093975,50.0,132.74,132.72,61.2]
[1763665094196,50.0,132.74,132.72,69.09979386]
[1763665095701,50.0,132.76,132.72,61.2]
[1763665095915,0.69,132.75,132.72,61.2]
[1763665096102,0.69,132.75,132.72,69.09979386]
[1763665096720,0.69,132.75,132.73,7.89979386]
[1763665097016,0.69,132.75,132.72,73.56509934]
[1763665097187,50.0,132.76,132.73,12.36509934]
[1763665097389,50.0,132.76,132.74,12.36509934]
[1763665097390,50.69,132.76,132.74,12.36509934]
[1763665097598,50.0,132.76,132.74,12.36509934]
[1763665097994,50.0,132.76,132.72,61.5]
[1763665098191,50.69,132.76,132.74,12.36509934]
[1763665098609,50.0,132.76,132.74,12.36509934]
[1763665099809,50.0,132.76,132.74,73.56509934]
[1763665100110,50.0,132.76,132.68,18.12096]
[1763665100111,1.82,132.76,132.68,18.12096]
[1763665100277,19.94096,132.77,132.74,13.03509934]
[1763665100481,52.5,132.78,132.74,13.03509934]
[1763665100678,51.82,132.78,132.75,0.72]
[1763665101100,52.5,132.78,132.75,0.72]
[1763665101303,52.5,132.78,132.73,0.72]
[1763665101503,51.82,132.78,132.75,12.36509934]
[1763665101886,52.5,132.78,132.75,12.36509934]
[1763665102084,52.5,132.78,132.74,13.08509934]
[1763665102308,0.68,132.77,132.73,12.36509934]
[1763665102479,0.68,132.77,132.66,1.93593088]
[1763665102480,62.36509934,132.76,132.66,1.93593088]
[1763665102677,50.0,132.74,132.69,12.36509934]
[1763665102880,50.0,132.72,132.68,12.36509934]
[1763665103081,50.0,132.72,132.69,0.72]
[1763665103321,50.0,132.72,132.69,13.08509934]
[1763665104103,52.5,132.74,132.7,13.08509934]
[1763665104790,51.82,132.74,132.7,0.72]
[1763665104997,50.0,132.72,132.68,13.08509934]
[1763665105414,50.0,132.72,132.69,0.72]
[1763665105619,50.0,132.72,132.69,13.08509934]
[1763665106116,19.94096,132.74,132.71,12.36509934]
[1763665106117,18.12096,132.74,132.71,12.36509934]
[1763665106294,50.0,132.76,132.73,12.36509934]
[1763665106495,50.0,132.78,132.75,12.36509934]
[1763665106696,51.82,132.78,132.75,12.36509934]
[1763665106919,18.12096,132.76,132.75,12.36509934]
[1763665107221,50.66,132.78,132.74,13.04509934]
[1763665107416,50.0,132.78,132.75,13.04509934]
[1763665107630,0.66,132.8,132.77,12.36509934]
[1763665107631,50.66,132.8,132.77,12.36509934]
[1763665108122,50.66,132.8,132.76,13.04509934]
[1763665109885,50.0,132.82,132.78,12.36509934]
[1763665110088,51.82,132.84,132.8,12.36509934]
[1763665110296,52.51,132.84,132.8,13.08509934]
[1763665110716,51.82,132.84,132.81,13.08509934]
[1763665110931,50.2,132.86,132.82,13.08509934]
[1763665111106,50.2,132.86,132.83,12.36509934]
[1763665111315,50.2,132.86,132.83,13.08509934]
[1763665111708,0.2,132.86,132.84,12.36509934]
[1763665112013,0.2,132.86,132.85,13.08509934]
[1763665112631,0.2,132.86,132.85,22.87392703]
[1763665112816,0.2,132.86,132.85,12.32882769]
[1763665113017,0.2,132.86,132.85,24.69392703]
[1763665114504,0.2,132.86,132.82,19.94096]
[1763665114700,0.2,132.86,132.83,13.08509934]
[1763665115001,0.2,132.86,132.85,12.36509934]
[1763665115202,0.2,132.86,132.85,13.08509934]
[1763665116518,0.2,132.86,132.82,10.50882769]
[1763665116731,0.2,132.86,132.83,13.08509934]
[1763665116932,0.2,132.86,132.84,0.72]
[1763665117918,0.2,132.86,132.84,13.08509934]
[1763665118119,0.2,132.86,132.84,0.72]
[1763665118327,0.2,132.86,132.85,0.72]
[1763665118938,80.68605934,132.9,132.86,61.0]
[1763665119137,69.01096,132.9,132.85,164.32]
[1763665119427,0.2,132.9,132.86,0.72]
[1763665120234,0.89,132.9,132.86,0.72]
[1763665120801,13.25509934,132.9,132.86,0.72]
[1763665121616,12.56509934,132.9,132.83,22.15392703]
[1763665121818,13.05509934,132.89,132.84,0.72]
[1763665122020,0.2,132.9,132.85,22.15392703]
[1763665122334,0.2,132.9,132.86,13.08509934]
[1763665122508,0.2,132.9,132.86,74.28509934]
[1763665122709,0.2,132.9,132.87,0.72]
[1763665123439,0.89,132.9,132.86,61.2]
[1763665123617,0.2,132.9,132.87,0.72]
[1763665125638,0.2,132.9,132.89,12.36509934]
[1763665125842,0.2,132.9,132.87,61.92]
[1763665126032,0.2,132.9,132.88,0.72]
[1763665126745,0.2,132.9,132.86,63.02]
[1763665126914,0.2,132.9,132.87,0.72]
[1763665128032,0.2,132.9,132.87,0.72]
[1763665128410,0.2,132.9,132.86,1.82]
[1763665128642,0.2,132.9,132.87,0.72]
[1763665129144,12.56509934,132.9,132.87,0.72]
[1763665129323,12.56509934,132.9,132.84,18.12096]
[1763665129324,13.05509934,132.89,132.84,0.72]
[1763665129519,12.36509934,132.87,132.82,9.78882769]
[1763665129839,12.36509934,132.87,132.84,0.72]
[1763665130138,13.05509934,132.88,132.84,0.72]
[1763665130340,13.04509934,132.88,132.84,0.72]
[1763665130542,12.36509934,132.85,132.8,0.65]
[1763665130722,13.04509934,132.85,132.8,0.65]
[1763665132423,68.80096,132.87,132.82,12.36509934]
[1763665132925,68.80096,132.87,132.83,0.65]
[1763665133125,18.12096,132.87,132.83,0.65]
[1763665133337,14.86509934,132.88,132.83,0.65]
[1763665133535,50.0,132.89,132.83,0.65]
[1763665133713,12.56509934,132.9,132.84,12.36509934]
[1763665134041,0.2,132.9,132.85,13.01509934]
[1763665134234,0.2,132.9,132.86,0.65]
[1763665134432,0.2,132.9,132.86,13.01509934]
[1763665134744,12.36509934,132.88,132.82,13.01509934]
[1763665135039,12.36509934,132.88,132.81,14.18509934]
[1763665135241,12.36509934,132.87,132.82,0.65]
[1763665135426,13.04509934,132.88,132.82,13.01509934]
[1763665135743,0.68,132.88,132.82,13.01509934]
[1763665135940,13.04509934,132.88,132.82,13.01509934]
[1763665136238,0.68,132.88,132.83,13.01509934]
[1763665136415,50.2,132.9,132.83,13.01509934]
[1763665136611,12.36509934,132.89,132.84,0.65]
[1763665137158,13.04509934,132.89,132.84,0.65]
[1763665137728,12.36509934,132.88,132.84,0.65]
[1763665137931,13.04509934,132.89,132.84,0.65]
[1763665138317,64.38509934,132.9,132.84,13.01509934]
[1763665138747,64.38509934,132.9,132.85,0.65]
[1763665139043,13.24509934,132.9,132.85,0.65]
[1763665139217,13.24509934,132.9,132.85,13.01509934]
[1763665139617,13.24509934,132.9,132.86,0.65]
[1763665139833,0.68,132.89,132.79,0.65]
[1763665140144,12.36509934,132.88,132.79,164.45]
[1763665140332,12.36509934,132.88,132.82,12.36509934]
[1763665140644,12.36509934,132.88,132.82,176.16509934]
[1763665140832,12.36509934,132.88,132.83,0.65]
[1763665140833,13.04509934,132.88,132.83,0.65]
[1763665141035,0.68,132.89,132.85,12.36509934]
[1763665141240,12.36509934,132.87,132.85,163.8]
[1763665141647,13.04509934,132.87,132.85,163.8]
[1763665142059,13.04509934,132.88,132.85,163.8]
[1763665142867,0.68,132.88,132.85,163.8]
[1763665143025,13.04509934,132.88,132.85,163.8]
[1763665143620,50.88,132.9,132.85,163.8]
[1763665143858,13.04509934,132.89,132.85,164.45]
[1763665144034,12.36509934,132.87,132.85,163.8]
[1763665144750,12.36509934,132.89,132.85,0.65]
[1763665144945,13.04509934,132.89,132.85,0.65]
[1763665145146,0.68,132.89,132.85,0.65]
[1763665145330,12.36509934,132.88,132.85,0.65]
[1763665145533,0.68,132.89,132.85,0.65]
[1763665145736,13.04509934,132.89,132.85,0.65]
[1763665145938,0.2,132.9,132.86,12.36509934]
[1763665146440,0.2,132.9,132.87,13.01509934]
[1763665146828,0.2,132.9,132.82,13.01509934]
[1763665146829,12.36509934,132.88,132.82,13.01509934]
[1763665147036,50.68,132.89,132.83,0.65]
[1763665147452,50.0,132.89,132.83,13.01509934]
[1763665147657,0.2,132.9,132.87,12.36509934]
[1763665147859,0.2,132.9,132.89,12.36509934]
[1763665148158,0.2,132.9,132.89,13.01509934]
[1763665148326,0.2,132.92,132.89,13.01509934]
[1763665148532,0.2,132.92,132.91,12.36509934]
[1763665148849,0.68,132.99,132.91,14.18509934]
[1763665149049,12.56509934,133.0,132.92,0.65]
[1763665149050,12.36509934,132.97,132.92,0.65]
[1763665149360,13.04509934,132.98,132.93,12.36509934]
[1763665149550,13.04509934,132.98,132.92,0.65]
[1763665149551,12.36509934,132.97,132.92,0.65]
[1763665149728,12.36509934,132.96,132.91,12.36509934]
[1763665149929,12.36509934,132.92,132.86,0.65]
[1763665150129,1.82,132.92,132.86,13.01509934]
[1763665150345,12.36509934,132.91,132.86,13.01509934]
[1763665150547,12.36509934,132.9,132.86,0.65]
[1763665150753,0.68,132.91,132.84,0.65]
[1763665151057,1.82,132.9,132.84,12.36509934]
[1763665151246,12.36509934,132.87,132.81,14.18509934]
[1763665151449,0.68,132.91,132.83,0.65]
[1763665151637,13.04509934,132.91,132.86,12.36509934]
[1763665151836,13.04509934,132.91,132.87,0.65]
[1763665151837,14.18509934,132.91,132.87,0.65]
[1763665152175,12.36509934,132.91,132.86,13.01509934]
[1763665152337,2.5,132.91,132.87,0.65]
[1763665152537,50.0,132.93,132.87,13.01509934]
[1763665152746,1.82,132.92,132.88,12.36509934]
[1763665152945,12.36509934,132.89,132.84,0.65]
[1763665153136,12.36509934,132.88,132.83,12.36509934]
[1763665153456,12.36509934,132.93,132.87,12.36509934]
[1763665153654,13.04509934,132.93,132.88,12.36509934]
[1763665153976,12.36509934,132.91,132.86,12.36509934]
[1763665154140,12.36509934,132.9,132.86,12.36509934]
[1763665154343,14.18509934,132.9,132.85,0.65]
[1763665154540,13.04509934,132.89,132.84,12.36509934]
[1763665154762,14.18509934,132.9,132.85,13.01509934]
[1763665154970,14.18509934,132.9,132.86,0.65]
[1763665155271,1.82,132.9,132.86,0.65]
[1763665155444,1.82,132.9,132.86,13.01509934]
[1763665155445,2.5,132.9,132.86,13.01509934]
[1763665156041,1.82,132.9,132.86,13.01509934]
[1763665156237,14.86509934,132.9,132.86,0.65]
[1763665156443,2.5,132.9,132.86,13.01509934]
[1763665156855,2.5,132.9,132.86,8.52642389]
[1763665157062,0.68,132.89,132.85,7.87642389]
[1763665157440,56.17497143,132.95,132.88,7.87642389]
[1763665157642,58.55642389,132.95,132.9,7.87642389]
[1763665157842,0.68,132.94,132.9,7.87642389]
[1763665158044,8.55642389,132.94,132.89,7.87642389]
[1763665158247,9.69642389,132.93,132.88,7.87642389]
[1763665158456,10.37642389,132.93,132.88,7.87642389]
[1763665158671,0.68,132.92,132.86,7.87642389]
[1763665158978,0.68,132.92,132.87,7.87642389]
[1763665158979,1.82,132.91,132.87,7.87642389]
[1763665159171,1.82,132.91,132.86,7.87642389]
[1763665159371,10.37642389,132.91,132.86,7.87642389]
[1763665159576,10.37642389,132.91,132.85,8.52642389]
[1763665159577,8.55642389,132.9,132.85,8.52642389]
[1763665159757,7.87642389,132.89,132.84,7.87642389]
[1763665159961,8.55642389,132.89,132.84,7.87642389]
[1763665160146,0.68,132.88,132.84,8.52642389]
[1763665160349,7.87642389,132.89,132.84,8.52642389]
[1763665160576,8.58642389,132.89,132.84,8.57642389]
[1763665160741,1.82,132.88,132.85,7.87642389]
[1763665161271,2.53,132.88,132.85,7.87642389]
[1763665161581,9.69642389,132.88,132.85,163.8]
[1763665161755,7.87642389,132.86,132.8,8.57642389]
[1763665162268,7.87642389,132.85,132.8,8.57642389]
[1763665162571,8.58642389,132.88,132.83,7.87642389]
[1763665162750,50.0,132.9,132.84,8.57642389]
[1763665162751,1.82,132.87,132.84,8.57642389]
[1763665163151,50.71,132.92,132.86,7.87642389]
[1763665163476,7.87642389,132.9,132.85,8.57642389]
[1763665163646,1.82,132.89,132.85,0.7]
[1763665163958,1.82,132.93,132.88,7.87642389]
[1763665164169,1.82,132.93,132.89,7.87642389]
[1763665164381,2.53,132.93,132.87,0.7]
[1763665164551,2.53,132.93,132.88,7.87642389]
[1763665164881,1.82,132.92,132.87,0.7]
[1763665165178,1.82,132.92,132.88,7.87642389]
[1763665165346,2.53,132.92,132.88,8.57642389]
[1763665165680,50.0,132.96,132.88,7.87642389]
[1763665165844,8.58642389,132.92,132.86,0.7]
[1763665166045,1.82,132.91,132.87,7.87642389]
[1763665166268,1.82,132.9,132.86,164.5]
[1763665166469,1.82,132.9,132.87,7.87642389]
[1763665166672,1.82,132.9,132.87,8.57642389]
[1763665167257,1.82,132.9,132.85,0.7]
[1763665167465,1.82,132.9,132.86,7.87642389]
[1763665167663,1.82,132.9,132.87,7.87642389]
[1763665167850,1.82,132.9,132.86,7.87642389]
[1763665167851,2.53,132.9,132.86,7.87642389]
[1763665168180,2.53,132.9,132.82,0.7]
[1763665168181,8.58642389,132.89,132.82,0.7]
[1763665168468,7.87642389,132.85,132.8,7.87642389]
[1763665168671,1.82,132.84,132.8,69.07642389]
[1763665168857,1.82,132.84,132.8,69.77642389]
[1763665169059,7.87642389,132.85,132.81,0.7]
[1763665169374,1.82,132.85,132.81,8.57642389]
[1763665169748,10.40642389,132.85,132.81,8.57642389]
[1763665170589,2.48,132.85,132.81,8.57642389]
[1763665170885,2.48,132.85,132.81,7.87642389]
[1763665171182,0.66,132.85,132.81,7.87642389]
[1763665171483,0.66,132.85,132.81,8.54642389]
[1763665171484,1.82,132.84,132.81,8.54642389]
[1763665172173,1.82,132.84,132.8,61.2]
[1763665172174,2.48,132.84,132.8,69.07642389]
[1763665172383,1.82,132.83,132.8,8.54642389]
[1763665174451,2.48,132.85,132.81,0.67]
[1763665174776,2.48,132.85,132.81,8.54642389]
[1763665175579,2.48,132.85,132.81,172.34642389]
[1763665175774,2.48,132.85,132.82,7.87642389]
[1763665176164,58.53642389,132.91,132.84,7.87642389]
[1763665176352,58.53642389,132.91,132.86,7.87642389]
[1763665176353,1.82,132.9,132.86,7.87642389]
[1763665176646,2.48,132.9,132.86,7.87642389]
[1763665176849,0.66,132.89,132.86,7.87642389]
[1763665177564,0.66,132.89,132.85,7.87642389]
[1763665177760,0.66,132.89,132.85,8.54642389]
[1763665178282,0.66,132.89,132.86,7.87642389]
[1763665178765,1.82,132.88,132.86,7.87642389]
[1763665179154,1.82,132.88,132.87,7.87642389]
[1763665179355,1.82,132.88,132.79,61.2]
[1763665179660,2.48,132.88,132.83,0.67]
[1763665179963,8.53642389,132.87,132.79,0.67]
[1763665180157,8.53642389,132.87,132.82,7.87642389]
[1763665180158,58.53642389,132.87,132.82,7.87642389]
[1763665180354,0.66,132.86,132.82,171.67642389]
[1763665181256,1.82,132.85,132.82,172.34642389]
[1763665181568,1.82,132.85,132.82,163.8]
[1763665182079,1.82,132.85,132.82,171.67642389]
[1763665182586,1.82,132.84,132.82,163.8]
[1763665182785,1.82,132.83,132.82,61.2]
[1763665184365,50.66,132.87,132.82,69.74642389]
[1763665184690,2.48,132.86,132.82,8.54642389]
[1763665184880,1.82,132.85,132.82,8.54642389]
[1763665185083,50.0,132.91,132.84,7.87642389]
[1763665185268,2.48,132.9,132.86,7.87642389]
[1763665185457,10.35642389,132.9,132.85,7.87642389]
[1763665185658,0.66,132.89,132.85,7.87642389]
[1763665186290,8.53642389,132.89,132.84,7.87642389]
[1763665186473,7.87642389,132.88,132.84,7.87642389]
[1763665186672,8.53642389,132.88,132.84,7.87642389]
[1763665186871,0.66,132.87,132.84,7.87642389]
[1763665187084,1.82,132.86,132.84,7.87642389]
[1763665187593,2.48,132.86,132.83,7.87642389]
[1763665188188,1.82,132.85,132.83,7.87642389]
[1763665188379,1.82,132.85,132.82,7.87642389]
[1763665189093,1.82,132.84,132.82,7.87642389]
[1763665189890,1.82,132.84,132.81,0.67]
[1763665190101,1.82,132.84,132.81,8.54642389]
[1763665190266,1.82,132.84,132.81,8.53642389]
[1763665190466,1.82,132.84,132.82,7.87642389]
[1763665191182,1.82,132.84,132.82,8.53642389]
[1763665191786,1.82,132.84,132.83,7.87642389]
[1763665192266,1.82,132.84,132.75,61.95329566]
[1763665192471,1.82,132.84,132.81,7.87642389]
[1763665193193,2.48,132.84,132.81,7.87642389]
[1763665193384,1.82,132.83,132.8,7.87642389]
[1763665193592,2.48,132.83,132.74,6.2959344]
[1763665193904,7.87642389,132.81,132.76,7.87642389]
[1763665194200,7.87642389,132.81,132.75,0.66]
[1763665194382,1.82,132.8,132.77,7.87642389]
[1763665194570,1.82,132.8,132.77,8.53642389]
[1763665194963,1.82,132.82,132.79,7.87642389]
[1763665195170,1.82,132.82,132.81,7.87642389]
[1763665195380,1.82,132.82,132.8,7.87642389]
[1763665196579,1.82,132.82,132.79,7.87642389]
[1763665196787,0.66,132.81,132.78,7.87642389]
[1763665197269,0.66,132.81,132.77,0.66]
[1763665197473,0.66,132.81,132.77,8.53642389]
[1763665198769,8.53642389,132.81,132.75,0.66]
[1763665198970,8.53642389,132.81,132.76,7.87642389]
[1763665199202,0.66,132.8,132.76,7.87642389]
[1763665199782,2.48,132.8,132.76,7.87642389]
[1763665200095,10.35642389,132.8,132.75,7.87642389]
[1763665200397,10.35642389,132.8,132.74,0.66]
[1763665200398,8.53642389,132.79,132.74,7.87642389]
[1763665200601,0.66,132.79,132.75,7.87642389]
[1763665200782,0.66,132.79,132.76,7.87642389]
[1763665201098,0.66,132.81,132.76,7.87642389]
[1763665201300,10.35642389,132.8,132.73,0.66]
[1763665201609,7.87642389,132.78,132.72,61.2]
[1763665201904,7.87642389,132.77,132.71,0.66]
[1763665202201,1.82,132.76,132.72,7.87642389]
[1763665202502,50.66,132.78,132.74,7.87642389]
[1763665202799,0.66,132.8,132.76,7.87642389]
[1763665203000,50.0,132.84,132.79,7.87642389]
[1763665203299,1.82,132.83,132.8,7.87642389]
[1763665203484,2.48,132.83,132.8,7.87642389]
[1763665203682,8.53642389,132.82,132.76,0.66]
[1763665203885,0.66,132.82,132.78,7.87642389]
[1763665204278,1.82,132.81,132.78,7.87642389]
[1763665204738,2.48,132.81,132.78,7.87642389]
[1763665205086,1.82,132.81,132.77,7.87642389]
[1763665205289,7.87642389,132.79,132.73,61.2]
[1763665205477,50.66,132.8,132.74,7.87642389]
[1763665205805,10.35642389,132.79,132.74,7.87642389]
[1763665206210,7.87642389,132.77,132.71,0.66]
[1763665206412,7.87642389,132.77,132.72,7.87642389]
[1763665206612,8.53642389,132.77,132.72,7.87642389]
[1763665206907,0.66,132.76,132.72,7.87642389]
[1763665207107,9.69642389,132.75,132.7,0.1]
[1763665207311,7.87642389,132.74,132.7,0.1]
[1763665207609,7.87642389,132.73,132.7,0.1]
[1763665207811,8.53642389,132.73,132.7,0.1]
[1763665207996,0.66,132.72,132.7,0.1]
[1763665208174,1.82,132.71,132.7,0.1]
[1763665208592,60.35642389,132.71,132.7,0.1]
[1763665208921,60.35642389,132.71,132.69,0.1]
[1763665209109,50.0,132.69,132.66,1.93593088]
[1763665209319,57.87642389,132.67,132.66,1.04593088]
[1763665209482,57.87642389,132.67,132.66,0.47593088]
[1763665209686,51.82,132.67,132.66,0.47593088]
[1763665209999,57.87642389,132.67,132.66,0.47593088]
[1763665210309,59.69642389,132.67,132.66,0.47593088]
[1763665211418,51.82,132.67,132.66,0.47593088]
[1763665211603,57.87642389,132.67,132.66,0.47593088]
[1763665211800,59.69642389,132.67,132.66,0.47593088]
[1763665212121,7.87642389,132.68,132.66,0.47593088]
[1763665212287,7.87642389,132.7,132.66,1.13593088]
[1763665212490,7.87642389,132.68,132.66,0.47593088]
[1763665212689,1.82,132.68,132.66,1.13593088]
[1763665214698,1.82,132.68,132.66,0.47593088]
[1763665215018,7.87642389,132.68,132.66,1.13593088]
[1763665215193,1.82,132.68,132.66,1.13593088]
[1763665215389,1.82,132.68,132.66,0.47593088]
[1763665215390,7.87642389,132.67,132.66,0.47593088]
[1763665215890,1.82,132.67,132.66,0.47593088]
[1763665216124,57.87642389,132.69,132.66,0.47593088]
[1763665216423,9.69642389,132.68,132.66,0.47593088]
[1763665216721,1.82,132.68,132.66,1.13593088]
[1763665217425,14.20046442,132.68,132.66,0.47593088]
[1763665217589,12.38046442,132.67,132.66,0.47593088]
[1763665218201,64.20046442,132.67,132.66,0.47593088]
[1763665219761,76.58092884,132.67,132.66,0.47593088]
[1763665221118,50.0,132.65,132.64,0.1]
[1763665221324,62.38046442,132.65,132.64,0.1]
[1763665221997,50.0,132.61,132.6,0.1]
[1763665222211,62.38046442,132.61,132.6,0.1]
[1763665222525,64.20046442,132.61,132.6,0.1]
[1763665222718,50.0,132.58,132.52,3.93895003]
[1763665223027,1.82,132.57,132.52,3.93895003]
[1763665223199,14.20046442,132.57,132.52,3.93895003]
[1763665223399,1.82,132.57,132.52,16.31941445]
[1763665223626,12.38046442,132.56,132.52,3.93895003]
[1763665223933,12.38046442,132.54,132.52,3.93895003]
[1763665224261,1.82,132.53,132.52,3.93895003]
[1763665224456,62.38046442,132.54,132.52,3.93895003]
[1763665224626,14.20046442,132.53,132.52,3.93895003]
[1763665225443,12.38046442,132.56,132.52,4.64895003]
[1763665225631,1.82,132.56,132.53,13.09046442]
[1763665225833,1.82,132.56,132.53,0.71]
[1763665226034,14.20046442,132.57,132.54,0.71]
[1763665226329,1.82,132.57,132.54,0.71]
[1763665226535,14.20046442,132.57,132.54,0.71]
[1763665227129,12.38046442,132.56,132.54,0.71]
[1763665227333,12.38046442,132.55,132.52,3.93895003]
[1763665227653,12.38046442,132.55,132.53,0.71]
[1763665228028,50.0,132.56,132.53,0.71]
[1763665228226,12.38046442,132.55,132.53,0.71]
[1763665228448,12.38046442,132.54,132.51,0.71]
[1763665228656,12.38046442,132.55,132.51,0.71]
[1763665229042,50.0,132.56,132.51,13.09046442]
[1763665229043,62.38046442,132.56,132.51,13.09046442]
[1763665229353,50.0,132.63,132.54,12.38046442]
[1763665229354,50.0,132.59,132.54,12.38046442]
[1763665229533,1.82,132.58,132.55,0.71]
[1763665230358,12.38046442,132.57,132.53,0.71]
[1763665230666,50.0,132.58,132.54,12.38046442]
[1763665230834,1.82,132.56,132.54,12.38046442]
[1763665231028,1.82,132.56,132.55,0.71]
[1763665231236,1.82,132.57,132.55,13.09046442]
[1763665231435,0.2,132.63,132.56,12.38046442]
[1763665231436,1.82,132.59,132.56,12.38046442]
[1763665231652,62.38046442,132.62,132.58,12.38046442]
[1763665231832,12.38046442,132.6,132.57,0.71]
[1763665232161,12.38046442,132.6,132.49,1.99999999]
[1763665232162,62.38046442,132.6,132.55,0.71]
[1763665232331,50.0,132.62,132.57,12.38046442]
[1763665232531,1.82,132.61,132.58,13.09046442]
[1763665232759,1.82,132.61,132.58,0.71]
[1763665232941,62.38046442,132.64,132.6,12.38046442]
[1763665233142,51.82,132.64,132.6,12.38046442]
[1763665233334,12.38046442,132.65,132.61,13.09046442]
[1763665233544,1.82,132.65,132.61,13.09046442]
[1763665233741,50.2,132.68,132.62,13.09046442]
[1763665233953,50.2,132.68,132.62,0.71]
[1763665233954,12.38046442,132.66,132.62,0.71]
[1763665234660,12.38046442,132.66,132.62,13.09046442]
[1763665234826,12.38046442,132.66,132.62,0.71]
[1763665235031,14.20046442,132.67,132.63,0.71]
[1763665235255,50.0,132.68,132.63,0.71]
[1763665235474,14.20046442,132.67,132.63,0.71]
[1763665235943,12.38046442,132.66,132.63,0.71]
[1763665236339,62.38046442,132.65,132.61,0.71]
[1763665236838,12.38046442,132.64,132.61,0.71]
[1763665237035,50.0,132.65,132.61,0.71]
[1763665237251,12.38046442,132.66,132.61,13.09046442]
[1763665237446,12.38046442,132.66,132.62,0.71]
[1763665237842,14.20046442,132.66,132.62,0.71]
[1763665238147,12.38046442,132.65,132.62,0.71]
[1763665239349,12.38046442,132.64,132.6,0.71]
[1763665239643,12.38046442,132.64,132.61,0.71]
[1763665239847,62.38046442,132.65,132.61,0.71]
[1763665240660,12.38046442,132.64,132.53,1.99999999]
[1763665240841,62.38046442,132.63,132.58,13.09046442]
[1763665241038,1.82,132.62,132.59,0.71]
[1763665241252,14.20046442,132.62,132.59,0.71]
[1763665242358,1.82,132.62,132.59,0.71]
[1763665243757,1.82,132.63,132.6,12.38046442]
[1763665243961,50.0,132.65,132.61,12.38046442]
[1763665244139,64.20046442,132.65,132.59,0.71]
[1763665244344,12.38046442,132.64,132.59,13.09046442]
[1763665244539,12.38046442,132.64,132.6,0.71]
[1763665245865,64.20046442,132.65,132.6,0.71]
[1763665246235,64.20046442,132.65,132.6,13.09046442]
[1763665246765,50.0,132.65,132.61,13.09046442]
[1763665246938,62.58046442,132.65,132.6,12.38046442]
[1763665247134,62.38046442,132.65,132.6,12.38046442]
[1763665247338,62.38046442,132.65,132.61,0.71]
[1763665247767,62.38046442,132.67,132.62,12.38046442]
[1763665247983,14.20046442,132.66,132.61,13.09046442]
[1763665248344,12.38046442,132.65,132.6,13.09046442]
[1763665248655,12.38046442,132.65,132.61,0.71]
[1763665248854,12.38046442,132.63,132.58,0.71]
[1763665249050,12.38046442,132.63,132.58,13.09046442]